[Event "Titled Tuesday Blitz December 13 Late 2022"]
[White "Ibarra Jerez, Jose Carlos"]
[Black "Deac, Bogdan-Daniel"]
[WhiteFideId "2226332"]
[BlackFideId "1226380"]
[WhiteElo "2638"]
[BlackElo "2649"]
[Result "0-1"]
[Round "10"]
[TimeControl "180+1"]
[Date "2022.12.13"]
[WhiteClock "0:00:03"]
[BlackClock "0:00:06"]

1. a3 {[%clk 0:02:59]}  d5 {[%clk 0:02:58]} 2. d4 {[%clk 0:02:57]}  Nf6 {[%clk 0:02:58]} 3. Nf3 {[%clk 0:02:57]}  c6 {[%clk 0:02:52]} 4. e3 {[%clk 0:02:54]}  Bf5 {[%clk 0:02:51]} 5. c4 {[%clk 0:02:53]}  e6 {[%clk 0:02:51]} 6. Nc3 {[%clk 0:02:54]}  Nbd7 {[%clk 0:02:51]} 7. c5 {[%clk 0:02:52]}  a5 {[%clk 0:02:39]} 8. Bd2 {[%clk 0:02:48]}  Ne4 {[%clk 0:02:39]} 9. b4 {[%clk 0:02:41]}  Nxd2 {[%clk 0:02:39]} 10. Nxd2 {[%clk 0:02:41]}  Be7 {[%clk 0:02:35]} 11. Nb3 {[%clk 0:02:34]}  axb4 {[%clk 0:02:34]} 12. axb4 {[%clk 0:02:35]}  e5 {[%clk 0:02:32]} 13. Be2 {[%clk 0:02:34]}  O-O {[%clk 0:02:30]} 14. O-O {[%clk 0:02:34]}  Bf6 {[%clk 0:02:31]} 15. Qd2 {[%clk 0:02:21]}  Re8 {[%clk 0:02:30]} 16. b5 {[%clk 0:02:08]}  exd4 {[%clk 0:02:23]} 17. Nxd4 {[%clk 0:01:57]}  Rxa1 {[%clk 0:02:20]} 18. Rxa1 {[%clk 0:01:56]}  Nxc5 {[%clk 0:02:20]} 19. Rd1 {[%clk 0:01:05]}  Bd7 {[%clk 0:02:12]} 20. bxc6 {[%clk 0:01:04]}  bxc6 {[%clk 0:02:13]} 21. Bf3 {[%clk 0:00:59]}  Ne6 {[%clk 0:02:11]} 22. Nxe6 {[%clk 0:00:49]}  fxe6 {[%clk 0:02:10]} 23. g3 {[%clk 0:00:46]}  Qb6 {[%clk 0:02:04]} 24. Rc1 {[%clk 0:00:43]}  Qa5 {[%clk 0:02:00]} 25. Qc2 {[%clk 0:00:37]}  Bxc3 {[%clk 0:01:49]} 26. Qxc3 {[%clk 0:00:38]}  Qxc3 {[%clk 0:01:49]} 27. Rxc3 {[%clk 0:00:39]}  Rc8 {[%clk 0:01:50]} 28. e4 {[%clk 0:00:37]}  Kf7 {[%clk 0:01:49]} 29. Rc5 {[%clk 0:00:33]}  Kf6 {[%clk 0:01:46]} 30. Bg4 {[%clk 0:00:31]}  Ke7 {[%clk 0:01:35]} 31. e5 {[%clk 0:00:25]}  g5 {[%clk 0:01:34]} 32. Kg2 {[%clk 0:00:22]}  Rb8 {[%clk 0:01:33]} 33. Be2 {[%clk 0:00:21]}  Rb4 {[%clk 0:01:32]} 34. Bd3 {[%clk 0:00:21]}  h6 {[%clk 0:01:32]} 35. Kf3 {[%clk 0:00:21]}  Kd8 {[%clk 0:01:19]} 36. Ra5 {[%clk 0:00:19]}  Kc7 {[%clk 0:01:17]} 37. Ke3 {[%clk 0:00:16]}  Kb6 {[%clk 0:01:15]} 38. Ra6+ {[%clk 0:00:16]}  Kb7 {[%clk 0:01:15]} 39. Ra5 {[%clk 0:00:16]}  d4+ {[%clk 0:00:56]} 40. Kf3 {[%clk 0:00:13]}  Be8 {[%clk 0:00:56]} 41. h4 {[%clk 0:00:05]}  Rb3 {[%clk 0:00:50]} 42. Ke2 {[%clk 0:00:05]}  gxh4 {[%clk 0:00:50]} 43. gxh4 {[%clk 0:00:05]}  Bh5+ {[%clk 0:00:38]} 44. Kd2 {[%clk 0:00:05]}  Rb2+ {[%clk 0:00:37]} 45. Ke1 {[%clk 0:00:06]}  Bf3 {[%clk 0:00:33]} 46. Bc4 {[%clk 0:00:01]}  Kb6 {[%clk 0:00:25]} 47. Ra3 {[%clk 0:00:01]}  Bg4 {[%clk 0:00:22]} 48. Bd3 {[%clk 0:00:01]}  Kc5 {[%clk 0:00:06]} 49. Ra5+ {[%clk 0:00:01]}  Kb4 {[%clk 0:00:06]} 50. Ra6 {[%clk 0:00:02]}  Kc3 {[%clk 0:00:06]} 51. Be4 {[%clk 0:00:02]}  c5 {[%clk 0:00:06]} 52. Kf1 {[%clk 0:00:02]}  c4 {[%clk 0:00:05]} 53. f3 {[%clk 0:00:03]}  Bh3+ {[%clk 0:00:05]} 54. Ke1 {[%clk 0:00:04]}  d3 {[%clk 0:00:06]} 55. Rd6 {[%clk 0:00:04]}  Re2+ {[%clk 0:00:05]} 56. Kd1 {[%clk 0:00:04]}  Re3 {[%clk 0:00:05]} 57. Ra6 {[%clk 0:00:04]}  Rxe4 {[%clk 0:00:05]} 58. fxe4 {[%clk 0:00:04]}  Bg4+ {[%clk 0:00:05]} 59. Ke1 {[%clk 0:00:03]}  d2+ {[%clk 0:00:06]} 0-1


[Site "https://www.chess.com"]

[Event "Titled Tuesday Blitz December 13 Late 2022"]
[White "Joubert, Dantelle"]
[Black "Petrovic, Aleksa"]
[WhiteFideId "14310813"]
[BlackFideId "967629"]
[WhiteElo "1507"]
[BlackElo "2230"]
[Result "0-1"]
[Round "10"]
[TimeControl "180+1"]
[Date "2022.12.14"]
[WhiteClock "0:00:01"]
[BlackClock "0:01:30"]

1. d4 {[%clk 0:03:00]}  Nf6 {[%clk 0:02:58]} 2. c4 {[%clk 0:03:00]}  e6 {[%clk 0:02:58]} 3. Nf3 {[%clk 0:02:58]}  b6 {[%clk 0:02:57]} 4. g3 {[%clk 0:02:55]}  Ba6 {[%clk 0:02:57]} 5. b3 {[%clk 0:02:53]}  d5 {[%clk 0:02:57]} 6. Qc2 {[%clk 0:02:40]}  Nbd7 {[%clk 0:02:52]} 7. Bg2 {[%clk 0:02:39]}  Bb4+ {[%clk 0:02:49]} 8. Bd2 {[%clk 0:02:38]}  Bd6 {[%clk 0:02:49]} 9. O-O {[%clk 0:02:33]}  O-O {[%clk 0:02:48]} 10. Bc1 {[%clk 0:02:00]}  Rc8 {[%clk 0:02:42]} 11. Nbd2 {[%clk 0:01:53]}  c5 {[%clk 0:02:40]} 12. dxc5 {[%clk 0:01:42]}  bxc5 {[%clk 0:02:34]} 13. e3 {[%clk 0:01:36]}  Qe7 {[%clk 0:02:28]} 14. Bb2 {[%clk 0:01:35]}  Rfd8 {[%clk 0:02:25]} 15. Rfd1 {[%clk 0:01:12]}  Nb6 {[%clk 0:02:16]} 16. Ng5 {[%clk 0:00:54]}  h6 {[%clk 0:02:01]} 17. Ngf3 {[%clk 0:00:38]}  dxc4 {[%clk 0:01:51]} 18. Nxc4 {[%clk 0:00:36]}  Nxc4 {[%clk 0:01:50]} 19. bxc4 {[%clk 0:00:36]}  Bb7 {[%clk 0:01:50]} 20. Ne5 {[%clk 0:00:30]}  Bxg2 {[%clk 0:01:42]} 21. Kxg2 {[%clk 0:00:30]}  Qb7+ {[%clk 0:01:42]} 22. f3 {[%clk 0:00:27]}  Bxe5 {[%clk 0:01:36]} 23. Bxe5 {[%clk 0:00:25]}  Ng4 {[%clk 0:01:35]} 24. Rxd8+ {[%clk 0:00:18]}  Rxd8 {[%clk 0:01:35]} 25. Bf4 {[%clk 0:00:15]}  e5 {[%clk 0:01:34]} 26. h3 {[%clk 0:00:10]}  exf4 {[%clk 0:01:33]} 27. hxg4 {[%clk 0:00:07]}  fxe3 {[%clk 0:01:33]} 28. Rd1 {[%clk 0:00:06]}  Rxd1 {[%clk 0:01:32]} 29. Qxd1 {[%clk 0:00:06]}  Qb2+ {[%clk 0:01:32]} 30. Kh3 {[%clk 0:00:06]}  Qd2 {[%clk 0:01:32]} 31. Qb3 {[%clk 0:00:02]}  e2 {[%clk 0:01:30]} 32. Qb8+ {[%clk 0:00:02]}  Kh7 {[%clk 0:01:30]} 33. Qb1+ {[%clk 0:00:01]}  g6 {[%clk 0:01:30]} 0-1


[Site "https://www.chess.com"]

[Event "Titled Tuesday Blitz December 13 Late 2022"]
[White "Karas, Marek"]
[Black "Han, Yichen"]
[WhiteFideId "14928558"]
[BlackFideId "1054430"]
[WhiteElo "2458"]
[BlackElo "2641"]
[Result "0-1"]
[Round "10"]
[TimeControl "180+1"]
[Date "2022.12.14"]
[WhiteClock "0:00:53"]
[BlackClock "0:00:12"]

1. a3 {[%clk 0:02:59]}  e5 {[%clk 0:02:59]} 2. c4 {[%clk 0:02:59]}  Nf6 {[%clk 0:02:55]} 3. Nc3 {[%clk 0:02:59]}  c6 {[%clk 0:02:54]} 4. d4 {[%clk 0:02:58]}  e4 {[%clk 0:02:48]} 5. Bg5 {[%clk 0:02:51]}  d5 {[%clk 0:02:44]} 6. e3 {[%clk 0:02:51]}  Be7 {[%clk 0:02:42]} 7. b4 {[%clk 0:02:50]}  Be6 {[%clk 0:02:42]} 8. Qb3 {[%clk 0:02:49]}  Nbd7 {[%clk 0:02:41]} 9. Nh3 {[%clk 0:02:46]}  a5 {[%clk 0:02:35]} 10. b5 {[%clk 0:02:44]}  dxc4 {[%clk 0:02:17]} 11. Bxc4 {[%clk 0:02:43]}  Bxc4 {[%clk 0:02:16]} 12. Qxc4 {[%clk 0:02:43]}  Nb6 {[%clk 0:02:17]} 13. Qe2 {[%clk 0:02:41]}  Nbd5 {[%clk 0:02:14]} 14. Nxd5 {[%clk 0:02:39]}  Qxd5 {[%clk 0:02:14]} 15. Bxf6 {[%clk 0:02:36]}  Bxf6 {[%clk 0:02:13]} 16. bxc6 {[%clk 0:02:33]}  Qxc6 {[%clk 0:02:08]} 17. O-O {[%clk 0:02:31]}  O-O {[%clk 0:02:08]} 18. Rfc1 {[%clk 0:02:30]}  Qd6 {[%clk 0:02:07]} 19. a4 {[%clk 0:02:27]}  Rfc8 {[%clk 0:02:02]} 20. Qb5 {[%clk 0:02:24]}  Qb4 {[%clk 0:01:56]} 21. Qxb4 {[%clk 0:02:22]}  axb4 {[%clk 0:01:56]} 22. Rxc8+ {[%clk 0:02:18]}  Rxc8 {[%clk 0:01:57]} 23. Rb1 {[%clk 0:02:19]}  Be7 {[%clk 0:01:48]} 24. Kf1 {[%clk 0:02:17]}  g5 {[%clk 0:01:32]} 25. Ng1 {[%clk 0:02:12]}  Rc2 {[%clk 0:01:20]} 26. g4 {[%clk 0:02:08]}  Ra2 {[%clk 0:01:19]} 27. Ne2 {[%clk 0:02:06]}  Bd6 {[%clk 0:01:10]} 28. Ng3 {[%clk 0:02:02]}  Bxg3 {[%clk 0:01:08]} 29. hxg3 {[%clk 0:02:03]}  Rxa4 {[%clk 0:01:09]} 30. Ke2 {[%clk 0:01:53]}  Kf8 {[%clk 0:01:03]} 31. Rb2 {[%clk 0:01:53]}  Ke7 {[%clk 0:01:03]} 32. Kd2 {[%clk 0:01:54]}  Kd6 {[%clk 0:00:55]} 33. Kc2 {[%clk 0:01:54]}  Kc6 {[%clk 0:00:55]} 34. Kb3 {[%clk 0:01:54]}  Kb5 {[%clk 0:00:56]} 35. Rc2 {[%clk 0:01:54]}  Ra3+ {[%clk 0:00:56]} 36. Kb2 {[%clk 0:01:55]}  Rd3 {[%clk 0:00:55]} 37. Rc5+ {[%clk 0:01:54]}  Ka4 {[%clk 0:00:54]} 38. Rc2 {[%clk 0:01:46]}  b5 {[%clk 0:00:49]} 39. Re2 {[%clk 0:01:41]}  Rb3+ {[%clk 0:00:44]} 40. Ka2 {[%clk 0:01:40]}  Ra3+ {[%clk 0:00:44]} 41. Kb1 {[%clk 0:01:37]}  Rd3 {[%clk 0:00:32]} 42. Ka2 {[%clk 0:01:33]}  b3+ {[%clk 0:00:27]} 43. Kb1 {[%clk 0:01:29]}  Ka3 {[%clk 0:00:25]} 44. Kc1 {[%clk 0:01:20]}  b4 {[%clk 0:00:25]} 45. Re1 {[%clk 0:01:08]}  Ka2 {[%clk 0:00:12]} 46. Re2+ {[%clk 0:01:08]}  Ka1 {[%clk 0:00:12]} 47. Rb2 {[%clk 0:00:53]}  Rc3+ {[%clk 0:00:12]} 0-1


[Site "https://www.chess.com"]

[Event "Titled Tuesday Blitz December 13 Late 2022"]
[White "Khandelwal, Ankush"]
[Black "Young, Ryan"]
[WhiteFideId "413470"]
[BlackFideId "2049945"]
[WhiteElo "2271"]
[BlackElo "2326"]
[Result "1/2-1/2"]
[Round "10"]
[TimeControl "180+1"]
[Date "2022.12.14"]
[WhiteClock "0:01:40"]
[BlackClock "0:00:53"]

1. e4 {[%clk 0:03:00]}  e5 {[%clk 0:02:59]} 2. Nf3 {[%clk 0:02:59]}  Nc6 {[%clk 0:03:00]} 3. d4 {[%clk 0:02:56]}  exd4 {[%clk 0:03:00]} 4. Nxd4 {[%clk 0:02:57]}  Nf6 {[%clk 0:03:00]} 5. Nxc6 {[%clk 0:02:56]}  bxc6 {[%clk 0:03:01]} 6. e5 {[%clk 0:02:57]}  Qe7 {[%clk 0:03:00]} 7. Qe2 {[%clk 0:02:56]}  Nd5 {[%clk 0:03:01]} 8. g3 {[%clk 0:02:55]}  g6 {[%clk 0:02:55]} 9. c4 {[%clk 0:02:55]}  Nb6 {[%clk 0:02:54]} 10. b3 {[%clk 0:02:55]}  Bg7 {[%clk 0:02:55]} 11. Bb2 {[%clk 0:02:56]}  O-O {[%clk 0:02:52]} 12. Bg2 {[%clk 0:02:56]}  f6 {[%clk 0:02:41]} 13. O-O {[%clk 0:02:49]}  fxe5 {[%clk 0:02:39]} 14. Nd2 {[%clk 0:02:40]}  Bb7 {[%clk 0:02:24]} 15. Rae1 {[%clk 0:02:38]}  d6 {[%clk 0:02:21]} 16. f4 {[%clk 0:02:38]}  Rae8 {[%clk 0:02:18]} 17. fxe5 {[%clk 0:02:37]}  Rxf1+ {[%clk 0:02:18]} 18. Nxf1 {[%clk 0:02:38]}  Bxe5 {[%clk 0:02:16]} 19. Bxe5 {[%clk 0:02:34]}  Qxe5 {[%clk 0:02:15]} 20. Qxe5 {[%clk 0:02:33]}  Rxe5 {[%clk 0:02:16]} 21. Rxe5 {[%clk 0:02:33]}  dxe5 {[%clk 0:02:17]} 22. Ne3 {[%clk 0:02:28]}  Kf7 {[%clk 0:02:01]} 23. Nc2 {[%clk 0:02:25]}  a5 {[%clk 0:01:59]} 24. Kf2 {[%clk 0:02:23]}  Nc8 {[%clk 0:01:48]} 25. Ke3 {[%clk 0:02:19]}  Nd6 {[%clk 0:01:44]} 26. Ne1 {[%clk 0:02:20]}  c5 {[%clk 0:01:43]} 27. Bxb7 {[%clk 0:02:09]}  Nxb7 {[%clk 0:01:44]} 28. Nf3 {[%clk 0:02:01]}  Kf6 {[%clk 0:01:39]} 29. Nd2 {[%clk 0:02:00]}  Nd6 {[%clk 0:01:37]} 30. Ne4+ {[%clk 0:01:59]}  Nxe4 {[%clk 0:01:38]} 31. Kxe4 {[%clk 0:02:00]}  Ke6 {[%clk 0:01:37]} 32. g4 {[%clk 0:01:50]}  g5 {[%clk 0:00:58]} 33. h3 {[%clk 0:01:47]}  c6 {[%clk 0:00:54]} 34. Ke3 {[%clk 0:01:39]}  Ke7 {[%clk 0:00:51]} 35. Kf3 {[%clk 0:01:38]}  Kf7 {[%clk 0:00:51]} 36. Ke3 {[%clk 0:01:38]}  Ke7 {[%clk 0:00:52]} 37. Kf3 {[%clk 0:01:39]}  Kf7 {[%clk 0:00:52]} 38. Ke3 {[%clk 0:01:40]}  Ke7 {[%clk 0:00:53]} 1/2-1/2


[Site "https://www.chess.com"]

[Event "Titled Tuesday Blitz December 13 Late 2022"]
[White "Kleiman, Jake"]
[Black "Dzierzak, Radoslaw"]
[WhiteFideId "2020041"]
[BlackFideId "1161407"]
[WhiteElo "2609"]
[BlackElo "2111"]
[Result "1-0"]
[Round "10"]
[TimeControl "180+1"]
[Date "2022.12.14"]
[WhiteClock "0:01:45"]
[BlackClock "0:01:58"]

1. e4 {[%clk 0:03:00]}  c6 {[%clk 0:03:00]} 2. Nc3 {[%clk 0:03:00]}  d5 {[%clk 0:03:00]} 3. Nf3 {[%clk 0:03:01]}  Bg4 {[%clk 0:02:58]} 4. h3 {[%clk 0:03:01]}  Bxf3 {[%clk 0:02:58]} 5. Qxf3 {[%clk 0:03:02]}  e6 {[%clk 0:02:59]} 6. a3 {[%clk 0:03:03]}  Nd7 {[%clk 0:02:58]} 7. d3 {[%clk 0:03:03]}  g6 {[%clk 0:02:57]} 8. g3 {[%clk 0:03:03]}  Bg7 {[%clk 0:02:58]} 9. Bg2 {[%clk 0:03:04]}  Ne7 {[%clk 0:02:58]} 10. O-O {[%clk 0:03:04]}  O-O {[%clk 0:02:59]} 11. Qe2 {[%clk 0:03:05]}  Qb6 {[%clk 0:02:55]} 12. Kh1 {[%clk 0:03:03]}  Rae8 {[%clk 0:02:55]} 13. f4 {[%clk 0:03:01]}  d4 {[%clk 0:02:42]} 14. Nb1 {[%clk 0:02:59]}  f5 {[%clk 0:02:38]} 15. Nd2 {[%clk 0:02:46]}  e5 {[%clk 0:02:33]} 16. Nc4 {[%clk 0:02:45]}  Qc7 {[%clk 0:02:33]} 17. fxe5 {[%clk 0:02:41]}  fxe4 {[%clk 0:02:32]} 18. Rxf8+ {[%clk 0:02:40]}  Rxf8 {[%clk 0:02:30]} 19. Qxe4 {[%clk 0:02:30]}  b5 {[%clk 0:02:27]} 20. Nd2 {[%clk 0:02:17]}  Bxe5 {[%clk 0:02:18]} 21. Nf3 {[%clk 0:02:11]}  Bd6 {[%clk 0:02:08]} 22. Nxd4 {[%clk 0:01:52]}  Nf6 {[%clk 0:02:05]} 23. Qe6+ {[%clk 0:01:47]}  Kh8 {[%clk 0:01:58]} 24. Bh6 {[%clk 0:01:45]} 1-0


[Site "https://www.chess.com"]

[Event "Titled Tuesday Blitz December 13 Late 2022"]
[White "Kujawski, Adam"]
[Black "Oro, Faustino"]
[WhiteFideId "1100920"]
[BlackFideId "20000197"]
[WhiteElo "2054"]
[BlackElo "1984"]
[Result "1/2-1/2"]
[Round "10"]
[TimeControl "180+1"]
[Date "2022.12.14"]
[WhiteClock "0:00:12"]
[BlackClock "0:00:15"]

1. e4 {[%clk 0:02:58]}  c5 {[%clk 0:02:58]} 2. Nf3 {[%clk 0:02:58]}  d6 {[%clk 0:02:59]} 3. d4 {[%clk 0:02:58]}  cxd4 {[%clk 0:02:59]} 4. Nxd4 {[%clk 0:02:59]}  Nf6 {[%clk 0:03:00]} 5. Nc3 {[%clk 0:02:59]}  a6 {[%clk 0:03:00]} 6. Bg5 {[%clk 0:02:59]}  e6 {[%clk 0:02:59]} 7. f4 {[%clk 0:02:59]}  h6 {[%clk 0:02:59]} 8. Bh4 {[%clk 0:02:59]}  Qb6 {[%clk 0:02:59]} 9. Qd3 {[%clk 0:02:58]}  Be7 {[%clk 0:02:51]} 10. O-O-O {[%clk 0:02:56]}  Nbd7 {[%clk 0:02:47]} 11. g4 {[%clk 0:02:45]}  Qc7 {[%clk 0:02:34]} 12. g5 {[%clk 0:02:23]}  hxg5 {[%clk 0:02:32]} 13. Bxg5 {[%clk 0:02:22]}  b5 {[%clk 0:02:29]} 14. e5 {[%clk 0:01:53]}  dxe5 {[%clk 0:02:23]} 15. Nxe6 {[%clk 0:01:53]}  fxe6 {[%clk 0:02:17]} 16. Qg6+ {[%clk 0:01:53]}  Kf8 {[%clk 0:02:15]} 17. Rg1 {[%clk 0:01:52]}  Bb7 {[%clk 0:01:34]} 18. Bh6 {[%clk 0:01:33]}  Rxh6 {[%clk 0:01:12]} 19. Qxg7+ {[%clk 0:01:32]}  Ke8 {[%clk 0:01:12]} 20. Qxh6 {[%clk 0:01:31]}  exf4 {[%clk 0:01:06]} 21. Bh3 {[%clk 0:01:11]}  Nf8 {[%clk 0:00:43]} 22. Bxe6 {[%clk 0:00:57]}  Nxe6 {[%clk 0:00:38]} 23. Qg6+ {[%clk 0:00:56]}  Kf8 {[%clk 0:00:38]} 24. Qh6+ {[%clk 0:00:52]}  Kf7 {[%clk 0:00:30]} 25. Qg6+ {[%clk 0:00:51]}  Kf8 {[%clk 0:00:30]} 26. Nd5 {[%clk 0:00:14]}  Bxd5 {[%clk 0:00:23]} 27. Rxd5 {[%clk 0:00:14]}  Rc8 {[%clk 0:00:15]} 28. Qh6+ {[%clk 0:00:12]}  Kf7 {[%clk 0:00:14]} 29. Qg6+ {[%clk 0:00:12]}  Kf8 {[%clk 0:00:14]} 30. Qh6+ {[%clk 0:00:12]}  Kf7 {[%clk 0:00:15]} 31. Qg6+ {[%clk 0:00:12]}  Kf8 {[%clk 0:00:15]} 1/2-1/2


[Site "https://www.chess.com"]

[Event "Titled Tuesday Blitz December 13 Late 2022"]
[White "Kupervaser, Erez"]
[Black "Osmonbekov, Talaibek"]
[WhiteFideId "2814587"]
[BlackFideId "2017253"]
[WhiteElo "2251"]
[BlackElo "2135"]
[Result "1-0"]
[Round "10"]
[TimeControl "180+1"]
[Date "2022.12.14"]
[WhiteClock "0:00:07"]
[BlackClock "0:00:07"]

1. e4 {[%clk 0:03:00]}  c5 {[%clk 0:03:00]} 2. Nf3 {[%clk 0:02:59]}  d6 {[%clk 0:03:00]} 3. Bb5+ {[%clk 0:02:55]}  Nd7 {[%clk 0:02:59]} 4. O-O {[%clk 0:02:55]}  a6 {[%clk 0:02:59]} 5. Bd3 {[%clk 0:02:55]}  Ngf6 {[%clk 0:02:47]} 6. c3 {[%clk 0:02:52]}  c4 {[%clk 0:02:44]} 7. Bxc4 {[%clk 0:02:39]}  Nxe4 {[%clk 0:02:43]} 8. Re1 {[%clk 0:01:59]}  Nef6 {[%clk 0:02:40]} 9. Qb3 {[%clk 0:01:46]}  e6 {[%clk 0:02:01]} 10. d4 {[%clk 0:01:33]}  Nb6 {[%clk 0:01:45]} 11. Bd3 {[%clk 0:01:32]}  Be7 {[%clk 0:01:44]} 12. Nbd2 {[%clk 0:01:31]}  O-O {[%clk 0:01:43]} 13. Nf1 {[%clk 0:01:32]}  Bd7 {[%clk 0:01:37]} 14. Ng3 {[%clk 0:01:15]}  Ba4 {[%clk 0:01:28]} 15. Qa3 {[%clk 0:01:10]}  d5 {[%clk 0:01:24]} 16. b4 {[%clk 0:01:10]}  Bb5 {[%clk 0:01:23]} 17. Ne5 {[%clk 0:01:04]}  Bxd3 {[%clk 0:01:14]} 18. Nxd3 {[%clk 0:01:05]}  Nc4 {[%clk 0:01:14]} 19. Qb3 {[%clk 0:01:05]}  Qc7 {[%clk 0:01:10]} 20. Bf4 {[%clk 0:01:04]}  Bd6 {[%clk 0:01:03]} 21. Bxd6 {[%clk 0:01:03]}  Qxd6 {[%clk 0:01:04]} 22. Nf1 {[%clk 0:00:54]}  Rfc8 {[%clk 0:00:57]} 23. Ne3 {[%clk 0:00:54]}  Nd2 {[%clk 0:00:49]} 24. Qb2 {[%clk 0:00:48]}  Nc4 {[%clk 0:00:32]} 25. Nxc4 {[%clk 0:00:47]}  Rxc4 {[%clk 0:00:33]} 26. Ne5 {[%clk 0:00:46]}  Rc7 {[%clk 0:00:32]} 27. Rac1 {[%clk 0:00:45]}  Rac8 {[%clk 0:00:32]} 28. a4 {[%clk 0:00:42]}  Ne4 {[%clk 0:00:28]} 29. Re3 {[%clk 0:00:41]}  f6 {[%clk 0:00:26]} 30. Nf3 {[%clk 0:00:39]}  Rc4 {[%clk 0:00:20]} 31. Ne1 {[%clk 0:00:37]}  Qc7 {[%clk 0:00:17]} 32. b5 {[%clk 0:00:14]}  Nxc3 {[%clk 0:00:16]} 33. Ra1 {[%clk 0:00:14]}  Nxa4 {[%clk 0:00:15]} 34. Qe2 {[%clk 0:00:12]}  axb5 {[%clk 0:00:14]} 35. Rxe6 {[%clk 0:00:12]}  Rc1 {[%clk 0:00:14]} 36. Rxc1 {[%clk 0:00:11]}  Qxc1 {[%clk 0:00:15]} 37. Re8+ {[%clk 0:00:12]}  Kf7 {[%clk 0:00:15]} 38. Qe6+ {[%clk 0:00:12]}  Kg6 {[%clk 0:00:14]} 39. Rxc8 {[%clk 0:00:12]}  Qd1 {[%clk 0:00:12]} 40. Kf1 {[%clk 0:00:10]}  b4 {[%clk 0:00:12]} 41. f3 {[%clk 0:00:11]}  Nc3 {[%clk 0:00:12]} 42. Qg4+ {[%clk 0:00:10]}  Kh6 {[%clk 0:00:11]} 43. Qf4+ {[%clk 0:00:08]}  Kg6 {[%clk 0:00:11]} 44. Qe3 {[%clk 0:00:07]}  Qa4 {[%clk 0:00:08]} 45. Qd3+ {[%clk 0:00:06]}  Kh6 {[%clk 0:00:08]} 46. Rc7 {[%clk 0:00:06]}  b5 {[%clk 0:00:07]} 47. Qe3+ {[%clk 0:00:06]}  Kg6 {[%clk 0:00:07]} 48. Qf4 {[%clk 0:00:07]} 1-0


[Site "https://www.chess.com"]

[Event "Titled Tuesday Blitz December 13 Late 2022"]
[White "Lacasa Diaz, Jose Antonio"]
[Black "Pham, Khoi"]
[WhiteFideId "2203375"]
[BlackFideId "1054988"]
[WhiteElo "2338"]
[BlackElo "2509"]
[Result "0-1"]
[Round "10"]
[TimeControl "180+1"]
[Date "2022.12.14"]
[WhiteClock "0:00:08"]
[BlackClock "0:00:08"]

1. e4 {[%clk 0:03:00]}  c5 {[%clk 0:02:59]} 2. Nf3 {[%clk 0:03:00]}  e6 {[%clk 0:02:58]} 3. c3 {[%clk 0:02:59]}  Nf6 {[%clk 0:02:55]} 4. d3 {[%clk 0:02:57]}  Nc6 {[%clk 0:02:52]} 5. Nbd2 {[%clk 0:02:55]}  d5 {[%clk 0:02:52]} 6. e5 {[%clk 0:02:53]}  Nd7 {[%clk 0:02:52]} 7. d4 {[%clk 0:02:54]}  Qb6 {[%clk 0:02:51]} 8. Bd3 {[%clk 0:02:46]}  cxd4 {[%clk 0:02:49]} 9. cxd4 {[%clk 0:02:45]}  Nxd4 {[%clk 0:02:48]} 10. O-O {[%clk 0:02:41]}  Nxf3+ {[%clk 0:02:39]} 11. Nxf3 {[%clk 0:02:39]}  Be7 {[%clk 0:02:39]} 12. Rb1 {[%clk 0:02:29]}  h6 {[%clk 0:02:28]} 13. b4 {[%clk 0:02:27]}  Qd8 {[%clk 0:02:27]} 14. Bc2 {[%clk 0:02:20]}  b6 {[%clk 0:02:22]} 15. Re1 {[%clk 0:02:09]}  Bb7 {[%clk 0:02:20]} 16. Nd4 {[%clk 0:02:05]}  Rc8 {[%clk 0:02:16]} 17. a3 {[%clk 0:01:50]}  a6 {[%clk 0:02:05]} 18. Bf4 {[%clk 0:01:08]}  b5 {[%clk 0:01:55]} 19. Qh5 {[%clk 0:01:01]}  Nf8 {[%clk 0:01:26]} 20. a4 {[%clk 0:00:48]}  Rc4 {[%clk 0:01:23]} 21. Be3 {[%clk 0:00:44]}  Bg5 {[%clk 0:01:10]} 22. Bd3 {[%clk 0:00:30]}  Bxe3 {[%clk 0:01:06]} 23. fxe3 {[%clk 0:00:30]}  Rc3 {[%clk 0:01:01]} 24. Red1 {[%clk 0:00:23]}  bxa4 {[%clk 0:00:51]} 25. b5 {[%clk 0:00:20]}  g6 {[%clk 0:00:41]} 26. Qf3 {[%clk 0:00:15]}  a5 {[%clk 0:00:19]} 27. b6 {[%clk 0:00:14]}  Nd7 {[%clk 0:00:18]} 28. Nxe6 {[%clk 0:00:11]}  Qe7 {[%clk 0:00:10]} 29. Nc7+ {[%clk 0:00:11]}  Kf8 {[%clk 0:00:09]} 30. Qf6 {[%clk 0:00:07]}  Nxf6 {[%clk 0:00:09]} 31. exf6 {[%clk 0:00:08]}  Qxf6 {[%clk 0:00:08]} 0-1


[Site "https://www.chess.com"]

[Event "Titled Tuesday Blitz December 13 Late 2022"]
[White "Marcolino, Daniel Mattos"]
[Black "Sariego Figueredo, Wilfredo"]
[WhiteFideId "2106841"]
[BlackFideId "3500080"]
[WhiteElo "2136"]
[BlackElo "2309"]
[Result "1-0"]
[Round "10"]
[TimeControl "180+1"]
[Date "2022.12.14"]
[WhiteClock "0:00:15"]
[BlackClock "0:00:03"]

1. d4 {[%clk 0:03:00]}  d5 {[%clk 0:02:59]} 2. Nf3 {[%clk 0:03:00]}  c6 {[%clk 0:03:00]} 3. g3 {[%clk 0:03:01]}  Nf6 {[%clk 0:03:00]} 4. Bg2 {[%clk 0:03:01]}  Bf5 {[%clk 0:03:00]} 5. c4 {[%clk 0:03:01]}  e6 {[%clk 0:03:01]} 6. Nc3 {[%clk 0:03:02]}  a6 {[%clk 0:02:57]} 7. Qb3 {[%clk 0:03:01]}  Qc7 {[%clk 0:02:53]} 8. Bf4 {[%clk 0:03:00]}  Qc8 {[%clk 0:02:51]} 9. O-O {[%clk 0:02:59]}  Be7 {[%clk 0:02:48]} 10. Rac1 {[%clk 0:02:56]}  dxc4 {[%clk 0:02:44]} 11. Qxc4 {[%clk 0:02:56]}  Nbd7 {[%clk 0:02:43]} 12. Nh4 {[%clk 0:02:46]}  Bg6 {[%clk 0:02:41]} 13. Nxg6 {[%clk 0:02:46]}  hxg6 {[%clk 0:02:42]} 14. e4 {[%clk 0:02:45]}  Ng4 {[%clk 0:02:28]} 15. h3 {[%clk 0:02:41]}  Ngf6 {[%clk 0:02:27]} 16. Rfe1 {[%clk 0:02:38]}  Qd8 {[%clk 0:02:24]} 17. Rcd1 {[%clk 0:02:37]}  Qa5 {[%clk 0:02:23]} 18. d5 {[%clk 0:02:32]}  cxd5 {[%clk 0:02:17]} 19. exd5 {[%clk 0:02:32]}  Nb6 {[%clk 0:02:13]} 20. Qc7 {[%clk 0:02:24]}  Rc8 {[%clk 0:02:05]} 21. Qxb7 {[%clk 0:02:22]}  Bb4 {[%clk 0:01:51]} 22. dxe6 {[%clk 0:02:15]}  O-O {[%clk 0:01:47]} 23. e7 {[%clk 0:02:01]}  Rfe8 {[%clk 0:01:41]} 24. Bc7 {[%clk 0:01:43]}  Bxc3 {[%clk 0:01:32]} 25. bxc3 {[%clk 0:01:35]}  Qxc3 {[%clk 0:00:42]} 26. Bxb6 {[%clk 0:01:30]}  Qb4 {[%clk 0:00:38]} 27. Qxc8 {[%clk 0:01:04]}  Rxc8 {[%clk 0:00:35]} 28. Rd8+ {[%clk 0:01:00]}  Ne8 {[%clk 0:00:30]} 29. Red1 {[%clk 0:00:27]}  Qa4 {[%clk 0:00:03]} 30. R1d4 {[%clk 0:00:15]} 1-0


[Site "https://www.chess.com"]